bitfinex-derivatives/quotes_ETHF0:USTF0_20241017
["timestamp","ask_amount","ask_price","bid_price","bid_amount"]
[1729174445051,0.38417,2603.7,2603.5,3.2078]
[1729174445251,4.73885,2604.2,2603.5,3.2078]
[1729174445439,0.38417,2603.6,2603.5,3.2078]
[1729174451043,3.2078,2603.9,2603.0,3.59205]
[1729174451249,0.38423,2603.3,2603.1,0.38425]
[1729174451940,0.96046,2603.6,2603.0,3.2078]
[1729174452143,0.96046,2603.6,2603.1,0.38424]
[1729174452144,0.38423,2603.3,2603.1,0.38424]
[1729174452444,0.38423,2603.2,2603.1,0.38424]
[1729174452643,0.96046,2603.6,2603.0,3.2078]
[1729174452644,0.38425,2603.1,2603.0,3.2078]
[1729174453955,0.38425,2603.1,2602.5,1.3888727]
[1729174453956,0.38429,2602.8,2602.7,3.2078]
[1729174455448,0.38429,2602.8,2602.7,13.4345]
[1729174456050,0.38429,2602.9,2602.8,0.38429]
[1729174456347,0.96062,2603.2,2602.7,3.2078]
[1729174456555,0.38429,2602.8,2602.7,3.59209]
[1729174456943,0.38429,2602.8,2602.7,7.43449]
[1729174457145,0.38429,2602.8,2602.7,3.2078]
[1729174457445,0.38429,2602.8,2602.3,1.0045427]
[1729174457446,9.8424,2602.8,2602.3,1.0045427]
[1729174457650,0.96078,2602.7,2602.1,3.2078]
[1729174457846,0.38438,2602.2,2602.1,3.2078]
[1729174458158,0.38437,2602.3,2602.2,0.38437]
[1729174458454,0.38434,2602.5,2602.4,0.38434]
[1729174458760,0.38434,2602.5,2602.4,3.59214]
[1729174459057,0.96067,2603.0,2602.4,3.2078]
[1729174459248,1.53459,2603.2,2602.7,3.5921]
[1729174459249,0.3843,2602.8,2602.7,3.5921]
[1729174459845,0.574,2603.2,2602.7,3.2078]
[1729174460049,0.38423,2603.3,2603.2,0.38423]
[1729174460251,0.5405,2603.4,2603.1,3.2078]
[1729174460562,0.92471,2603.4,2603.2,0.38422]
[1729174460761,0.92471,2603.4,2603.2,0.38423]
[1729174461057,0.38422,2603.3,2603.2,0.38423]
[1729174461252,0.5405,2603.4,2603.1,3.2078]
[1729174461455,0.574,2603.9,2603.1,7.0494]
[1729174461653,0.574,2603.9,2603.5,3.2078]
[1729174461654,0.38419,2603.6,2603.5,3.2078]
[1729174461862,0.38417,2603.7,2603.5,3.59198]
[1729174462459,0.574,2603.9,2603.6,0.38417]
[1729174462763,0.574,2603.9,2603.5,3.59198]
[1729174462955,0.38417,2603.7,2603.5,3.59198]
[1729174463351,0.38417,2603.7,2603.6,0.38417]
[1729174463553,0.38417,2603.7,2603.5,3.59198]
[1729174463761,0.574,2603.9,2603.5,3.59198]
[1729174463762,0.38417,2603.6,2603.5,3.2078]
[1729174464057,0.38417,2603.7,2603.5,3.59199]
[1729174464259,0.38417,2603.6,2603.5,3.2078]
[1729174464450,4.74216,2603.9,2603.1,3.2078]
[1729174464760,0.38423,2603.3,2603.1,3.59204]
[1729174465262,0.96042,2603.7,2603.1,3.59204]
[1729174465455,0.38423,2603.3,2603.1,3.2078]
[1729174465759,0.38423,2603.2,2603.1,3.59205]
[1729174465954,0.96045,2603.6,2603.1,3.59205]
[1729174466155,0.38423,2603.3,2603.1,3.59205]
[1729174466352,0.38423,2603.2,2603.1,3.59205]
[1729174466651,0.38423,2603.2,2603.1,3.2078]
[1729174467562,0.38423,2603.2,2603.1,13.0494]
[1729174467753,0.96041,2603.7,2603.1,3.2078]
[1729174467954,0.38423,2603.2,2603.1,3.59204]
[1729174468154,0.38423,2603.2,2603.1,3.2078]
[1729174469759,0.96041,2603.7,2603.1,3.2078]
[1729174469960,0.96047,2603.6,2603.1,3.2078]
[1729174470165,0.38423,2603.3,2603.1,3.59204]
[1729174470360,0.38423,2603.3,2603.2,0.38423]
[1729174470562,0.38423,2603.3,2603.1,3.59204]
[1729174470756,0.574,2603.9,2603.2,3.8416]
[1729174470965,0.38417,2603.6,2603.5,0.38418]
[1729174471268,0.38418,2603.6,2603.5,0.38419]
[1729174471764,0.38418,2603.6,2603.4,3.2078]
[1729174471967,0.38419,2603.5,2603.4,3.592]
[1729174472459,0.38419,2603.5,2603.4,3.2078]
[1729174473067,0.96041,2603.7,2603.1,3.2078]
[1729174473270,0.38423,2603.3,2603.1,3.2078]
[1729174473470,0.38419,2603.5,2603.4,0.3842]
[1729174473967,1.53437,2603.9,2603.1,3.2078]
[1729174474266,0.38421,2603.4,2603.2,0.38423]
[1729174474462,0.38422,2603.3,2603.2,0.38423]
[1729174474961,0.96042,2603.7,2603.1,3.2078]
[1729174475162,0.38423,2603.3,2603.1,3.59204]
[1729174475870,0.38423,2603.2,2603.1,3.59204]
[1729174476263,0.38423,2603.2,2603.1,3.2078]
[1729174476861,0.574,2603.9,2603.1,3.2078]
[1729174477164,0.38423,2603.2,2603.1,3.59204]
[1729174477368,0.96051,2603.5,2603.1,3.2078]
[1729174477562,0.96051,2603.5,2603.2,0.38422]
[1729174477763,0.96051,2603.5,2603.0,3.69]
[1729174477764,0.3842,2603.5,2603.4,3.2078]
[1729174477963,0.3842,2603.5,2603.4,3.592]
[1729174478270,0.3842,2603.5,2603.4,3.2078]
[1729174479658,0.38423,2603.2,2603.1,3.2078]
[1729174482162,0.98433,2603.3,2603.2,0.38423]
[1729174482469,0.9604,2603.8,2603.2,0.38423]
[1729174482470,0.3842,2603.5,2603.2,0.38423]
[1729174482770,0.3842,2603.5,2603.1,7.85842]
[1729174482771,0.3842,2603.5,2603.4,0.3842]
[1729174483070,0.38421,2603.4,2603.3,0.38421]
[1729174483671,0.96044,2603.6,2603.1,6.8978]
[1729174483870,0.38423,2603.2,2603.1,3.2078]
[1729174484070,0.38423,2603.2,2603.1,3.59205]
[1729174484273,0.38423,2603.2,2603.1,3.2078]
[1729174485574,0.3842,2603.5,2603.4,0.3842]
[1729174485873,0.3842,2603.5,2603.4,3.592]
[1729174486074,0.38418,2603.6,2603.5,0.38418]
[1729174486374,0.6001,2603.8,2603.7,0.38416]
[1729174486774,0.6001,2603.8,2603.7,3.59196]
[1729174487173,0.38415,2603.8,2603.7,3.59196]
[1729174487885,0.38415,2603.8,2603.7,3.2078]
[1729174489584,0.38411,2604.1,2604.0,0.38412]
[1729174489876,0.38407,2604.3,2604.2,0.38409]
[1729174490271,3.3855618,2604.9,2604.2,3.84]
[1729174490472,3.2078,2604.9,2604.3,6.8978]
[1729174490978,3.2078,2604.9,2604.3,3.2078]
[1729174491480,3.2078,2604.9,2604.4,0.38405]
[1729174491481,0.38403,2604.6,2604.4,0.38405]
[1729174491678,3.2078,2604.9,2604.5,0.38403]
[1729174491980,3.2078,2604.9,2604.3,6.8978]
[1729174492183,0.38402,2604.7,2604.5,0.38404]
[1729174492374,3.2078,2604.9,2604.3,6.8978]
[1729174492569,0.38401,2604.8,2604.7,3.2078]
[1729174492777,0.5833,2605.0,2604.7,3.2078]
[1729174492974,0.384,2604.8,2604.7,3.2078]
[1729174494472,0.17769014,2605.2,2604.7,3.2078]
[1729174494671,0.38399,2604.9,2604.7,3.59181]
[1729174494867,0.95979,2605.4,2604.7,3.59181]
[1729174494868,0.38395,2605.1,2604.7,3.59181]
[1729174495074,0.95979,2605.4,2604.8,0.38399]
[1729174495390,0.95972,2605.6,2605.0,3.2078]
[1729174495575,0.17849628,2605.7,2605.0,3.2078]
[1729174495773,0.38391,2605.4,2605.3,3.2078]
[1729174496171,0.3839,2605.5,2605.3,3.2078]
[1729174496380,0.38391,2605.4,2605.3,3.2078]
[1729174496883,0.38391,2605.5,2605.3,3.2078]
[1729174497072,0.38391,2605.4,2605.3,3.2078]
[1729174497482,0.95967,2605.7,2604.9,4.62977]
[1729174497483,0.38396,2605.1,2604.9,6.8978]
[1729174497676,0.38396,2605.1,2604.9,7.28178]
[1729174497878,0.95977,2605.5,2604.9,6.8978]
[1729174498074,0.95978,2605.4,2604.9,6.8978]
[1729174498272,0.38397,2605.0,2604.9,3.2078]
[1729174499888,0.38403,2604.6,2604.5,3.2078]
[1729174500073,8.0449,2605.3,2604.5,3.2078]
[1729174500274,0.38409,2604.2,2604.1,3.2078]
[1729174500476,0.38413,2603.9,2603.8,3.2078]
[1729174501082,0.38413,2603.9,2603.0,0.19410537]
[1729174501083,0.38419,2603.5,2603.4,3.2078]
[1729174501682,0.5667,2603.7,2603.1,3.69]
[1729174501878,0.5667,2603.7,2603.3,3.2078]
[1729174502179,0.3842,2603.4,2603.3,3.2078]
[1729174503377,1.52713,2603.7,2602.9,3.2078]
[1729174503378,0.9605,2603.5,2602.9,3.2078]
[1729174503585,0.38426,2603.1,2602.9,3.2078]
[1729174503790,0.38426,2603.0,2602.9,3.2078]
[1729174504384,0.38432,2602.6,2602.5,3.2078]
[1729174504878,0.38438,2602.2,2602.1,3.2078]
[1729174505676,0.38438,2602.2,2602.1,7.051]
[1729174506684,0.96079,2602.7,2601.8,4.15]
[1729174506887,0.38442,2602.0,2601.8,4.15]
[1729174507088,4.16859,2602.7,2601.7,3.2078]
[1729174507089,0.38444,2601.8,2601.7,3.2078]
[1729174507392,0.38447,2601.6,2601.3,0.3845]
[1729174507581,0.38447,2601.6,2601.5,3.2078]
[1729174507775,0.96099,2602.2,2601.5,3.2078]
[1729174507980,0.38447,2601.6,2601.5,3.2078]
[1729174508875,0.38453,2601.2,2601.1,3.2078]
[1729174509192,0.8431,2602.0,2600.5,0.38463]
[1729174509193,0.3846,2600.7,2600.5,0.38463]
[1729174509380,0.96133,2601.3,2600.4,4.0306]
[1729174509381,0.96133,2601.3,2600.4,4.41524]
[1729174509583,0.38459,2600.9,2600.7,3.2078]
[1729174509888,3.2078,2601.4,2600.7,3.2078]
[1729174510083,0.38451,2601.4,2601.0,3.2078]
[1729174510276,0.8431,2602.0,2601.0,3.2078]
[1729174510277,0.38453,2601.3,2601.0,3.2078]
[1729174510480,0.8431,2602.0,2600.7,3.2078]
[1729174510481,0.38456,2601.1,2600.7,3.2078]
[1729174510684,0.38454,2601.2,2600.7,3.5924]
[1729174510886,0.38454,2601.2,2600.4,4.9728]
[1729174510887,3.8052,2601.9,2601.0,3.2078]
[1729174511188,3.8052,2601.9,2601.5,0.38448]
[1729174511189,3.2078,2601.9,2601.5,0.38448]
[1729174511786,1.22752,2602.0,2601.6,3.2078]
[1729174511987,0.8431,2602.0,2601.6,3.2078]
[1729174512292,0.38446,2601.7,2601.6,3.2078]
[1729174512979,0.8431,2602.0,2601.2,3.2078]
[1729174513179,0.8431,2602.0,2600.8,4.15]
[1729174513180,3.2078,2601.9,2601.3,3.2078]
[1729174513591,0.38448,2601.6,2601.3,3.2078]
[1729174513894,0.3845,2601.4,2601.3,3.2078]
[1729174514085,3.2078,2601.9,2601.3,3.2078]
[1729174514293,0.38446,2601.7,2601.3,3.2078]
[1729174514585,0.38447,2601.6,2601.3,3.2078]
[1729174514789,0.3844,2602.1,2601.6,0.38446]
[1729174514993,0.7914,2602.4,2601.7,0.38445]
[1729174514994,0.38439,2602.2,2601.7,0.38445]
[1729174515187,1.6349,2602.4,2601.7,0.38445]
[1729174515391,1.6349,2602.4,2601.9,3.2078]
[1729174515788,2.01926,2602.4,2601.9,3.2078]
[1729174515985,2.01926,2602.4,2602.0,0.38441]
[1729174516185,0.3844,2602.1,2601.9,3.2078]
[1729174516494,0.38442,2602.0,2601.6,3.2078]
[1729174516799,0.38442,2602.0,2601.6,3.59227]
[1729174517092,0.3844,2602.1,2601.7,0.38445]
[1729174517297,0.38442,2602.0,2601.6,3.59226]
[1729174517482,0.38442,2602.0,2601.7,0.38445]
[1729174517684,0.3844,2602.1,2601.9,3.2078]
[1729174517879,1.6349,2602.4,2601.8,0.38444]
[1729174518087,0.38439,2602.2,2601.9,3.2078]
[1729174518287,1.6349,2602.4,2601.9,3.2078]
[1729174518491,0.3844,2602.1,2601.9,3.2078]
[1729174518694,1.6349,2602.4,2601.9,3.2078]
[1729174518993,0.38438,2602.2,2602.1,3.2078]
[1729174519885,0.38445,2601.8,2601.5,0.38448]
[1729174520086,0.96096,2602.3,2601.5,0.38447]
[1729174520087,0.38444,2601.9,2601.5,0.38447]
[1729174520393,0.96096,2602.3,2601.5,0.38447]
[1729174520696,0.38444,2601.8,2601.5,0.38447]
[1729174520995,0.38442,2602.0,2601.7,3.59224]
[1729174521394,0.96089,2602.4,2601.7,3.2078]
[1729174521595,0.38443,2601.9,2601.7,3.2078]
[1729174521793,0.38444,2601.9,2601.7,3.2078]
[1729174522190,4.34930406,2602.5,2601.2,0.8309]
[1729174522191,3.38845406,2602.5,2601.2,0.8309]
[1729174522393,0.38449,2601.5,2601.3,3.2078]
[1729174522694,0.3845,2601.4,2601.3,3.2078]
[1729174522893,0.38448,2601.6,2601.3,3.2078]
[1729174523091,0.38446,2601.7,2601.4,0.38449]
[1729174523403,0.38445,2601.8,2601.5,0.38448]
[1729174523698,0.38445,2601.8,2601.6,3.2078]
[1729174523887,1.18243,2601.9,2601.6,3.59226]
[1729174524092,3.2078,2602.3,2601.6,3.2078]
[1729174524287,3.2078,2602.3,2601.7,0.38445]
[1729174524483,0.38442,2602.0,2601.8,0.38444]
[1729174525086,0.798,2602.4,2601.9,0.38442]
[1729174525417,0.38439,2602.2,2601.9,3.59222]
[1729174525606,0.38441,2602.0,2601.9,3.2078]
[1729174525898,0.3844,2602.1,2601.9,3.2078]
[1729174526201,1.18237,2602.4,2602.1,0.38439]
[1729174526399,1.18237,2602.4,2602.2,3.2078]
[1729174526595,1.18237,2602.4,2602.2,3.59218]
[1729174526801,0.38437,2602.3,2602.2,3.2078]
[1729174527097,1.18236,2602.4,2602.2,3.2078]
[1729174527396,0.38437,2602.3,2602.2,3.2078]
[1729174528197,0.798,2602.4,2601.9,3.2078]
[1729174528397,0.38441,2602.1,2601.9,3.2078]
[1729174528692,1.7589,2602.4,2601.9,3.2078]
[1729174528994,0.96092,2602.3,2601.5,4.0398]
[1729174529199,0.38446,2601.7,2601.5,4.0398]
[1729174529393,0.38446,2601.7,2601.5,3.2078]
[1729174529594,0.38446,2601.7,2601.5,3.59228]
[1729174529995,0.96096,2602.2,2601.5,3.2078]
[1729174530300,3.69,2602.1,2601.5,3.2078]
[1729174530493,0.3845,2601.4,2601.2,0.38452]
[1729174530696,0.96099,2602.2,2601.1,6.8978]
[1729174530892,3.69,2602.2,2601.2,0.38452]
[1729174531095,0.96104,2602.0,2601.4,3.2078]
[1729174531392,0.38448,2601.5,2601.4,3.2078]
[1729174531703,0.38448,2601.6,2601.4,3.2078]
[1729174531900,0.8586,2601.9,2601.4,3.2078]
[1729174532101,1.24303,2601.9,2601.7,0.38445]
[1729174532396,0.38445,2601.8,2601.6,0.38447]
[1729174532897,0.8586,2601.9,2601.4,3.2078]
[1729174533098,0.38445,2601.8,2601.6,0.38446]
[1729174533292,0.8586,2601.9,2601.4,3.59229]
[1729174533293,0.38447,2601.6,2601.4,3.59229]
[1729174533494,0.8586,2601.9,2601.4,3.59229]
[1729174533699,0.8586,2601.9,2601.4,3.2078]
[1729174533892,0.38447,2601.6,2601.4,3.59229]
[1729174534092,0.8586,2601.9,2601.4,3.2078]
[1729174534293,0.38448,2601.5,2601.4,3.2078]
[1729174534589,0.8586,2601.9,2601.4,3.59229]
[1729174534793,0.38447,2601.7,2601.5,0.38448]
[1729174535003,0.38446,2601.7,2601.5,0.38448]
[1729174535202,0.8586,2601.9,2601.4,3.2078]
[1729174535601,0.38446,2601.7,2601.5,0.38448]
[1729174536300,0.8586,2601.9,2601.4,3.2078]
[1729174536504,0.38446,2601.7,2601.5,0.38448]
[1729174537300,0.8586,2601.9,2601.4,3.2078]
[1729174537502,0.38446,2601.7,2601.5,0.38447]
[1729174537804,0.8586,2601.9,2601.2,3.69]
[1729174537999,0.8586,2601.9,2601.1,4.0058]
[1729174538000,0.96111,2601.8,2601.1,3.59234]
[1729174538193,0.96115,2601.7,2601.1,3.2078]
[1729174538392,1.79265,2601.7,2601.1,3.59233]
[1729174538599,0.38448,2601.6,2601.4,0.38449]
[1729174538799,0.38449,2601.5,2601.3,0.38451]
[1729174539000,0.38449,2601.5,2601.3,0.3845]
[1729174539292,0.38448,2601.6,2601.4,0.3845]
[1729174539607,0.38449,2601.5,2601.1,3.2078]
[1729174539903,0.38449,2601.5,2601.0,5.4688]
[1729174539904,0.8586,2601.9,2601.4,3.2078]
[1729174540102,0.38444,2601.8,2601.7,3.2078]
[1729174540497,1.24303,2601.9,2601.8,0.38444]
[1729174540803,0.38444,2601.8,2601.7,3.2078]
[1729174541106,0.38447,2601.7,2601.5,0.38448]
[1729174541904,1.24304,2601.9,2601.7,0.38445]
[1729174542102,0.38444,2601.8,2601.6,3.59226]
[1729174542396,0.38446,2601.7,2601.6,3.2078]
[1729174543409,0.38446,2601.7,2601.6,3.59227]
[1729174543606,0.38446,2601.7,2601.6,3.2078]
[1729174543809,0.38445,2601.8,2601.6,3.59227]
[1729174544109,0.38445,2601.8,2601.6,3.59226]
[1729174544406,0.8586,2601.9,2601.6,3.2078]
[1729174544709,1.24303,2601.9,2601.7,0.38445]
[1729174545008,0.38445,2601.8,2601.6,3.59226]
[1729174545211,0.8586,2601.9,2601.6,3.2078]
[1729174545411,0.38446,2601.7,2601.6,3.2078]
[1729174545802,0.3845,2601.4,2601.3,3.2078]
[1729174546009,0.3845,2601.4,2601.0,2.32421406]
[1729174546010,0.38454,2601.2,2601.0,4.0252]
[1729174546205,0.38454,2601.2,2601.1,0.38454]
[1729174546405,0.38454,2601.1,2601.0,4.0252]
[1729174546716,0.38454,2601.2,2601.1,0.38454]
[1729174547007,0.38453,2601.2,2601.1,0.38454]
[1729174547311,0.38452,2601.3,2601.1,0.38453]
[1729174547500,0.8499,2601.6,2601.0,4.0252]
[1729174547698,0.8586,2601.9,2601.3,3.2078]
[1729174547906,0.8586,2601.9,2601.4,0.3845]
[1729174547907,0.38449,2601.5,2601.4,0.3845]
[1729174548107,0.38448,2601.6,2601.4,0.3845]
[1729174548302,0.38448,2601.6,2601.3,3.2078]
[1729174548303,0.38447,2601.6,2601.5,0.38447]
[1729174548511,0.38447,2601.6,2601.3,3.2078]
[1729174548709,0.96113,2601.8,2601.3,3.2078]
[1729174548907,0.3845,2601.4,2601.3,3.2078]
[1729174549107,0.96119,2601.6,2601.0,1.0045427]
[1729174549310,0.38453,2601.2,2601.0,1.3890927]
[1729174549711,0.38453,2601.2,2601.0,1.0045427]
[1729174550015,0.38456,2601.1,2600.9,3.59237]
[1729174550215,0.96122,2601.5,2600.9,3.2078]
[1729174550418,0.38454,2601.2,2601.0,0.38456]
[1729174550804,0.38454,2601.1,2601.0,0.38456]
[1729174551009,0.38454,2601.1,2600.9,3.2078]
[1729174551010,0.38456,2601.0,2600.9,3.2078]
[1729174551309,0.38459,2600.9,2600.8,0.38458]
[1729174551717,4.5397,2601.4,2600.3,3.2078]
[1729174551914,0.38465,2600.4,2600.3,3.2078]
[1729174552620,0.38465,2600.4,2600.3,3.59246]
[1729174553113,0.38463,2600.6,2600.5,0.38462]
[1729174553314,0.38464,2600.5,2600.4,0.38463]
[1729174553514,0.8997,2601.0,2600.3,3.2078]
[1729174553515,0.38462,2600.6,2600.5,0.38462]
[1729174553819,0.38464,2600.5,2600.4,0.38464]
[1729174554013,0.38465,2600.4,2600.3,0.38466]
[1729174554204,0.96159,2600.5,2600.0,3.2078]
[1729174554410,3.69,2600.6,2600.0,3.2078]
[1729174554603,0.38469,2600.1,2600.0,3.2078]
[1729174554808,0.38469,2600.1,2600.0,3.5925]
[1729174555114,1.78753,2600.7,2600.0,3.5925]
[1729174555115,1.78753,2600.7,2600.0,3.2078]
[1729174555313,0.38469,2600.1,2600.0,3.5925]
[1729174555613,0.38469,2600.2,2600.0,3.2078]
[1729174555814,0.96155,2600.6,2600.0,3.2078]
[1729174556018,0.38462,2600.6,2600.3,3.59245]
[1729174556212,0.826,2600.7,2600.3,3.59245]
[1729174556417,0.826,2600.7,2600.3,3.2078]
[1729174556713,0.38465,2600.5,2600.3,3.2078]
[1729174556915,0.38465,2600.5,2600.3,3.59246]
[1729174557109,0.38465,2600.4,2600.3,3.2078]
[1729174557503,0.826,2600.7,2600.3,3.2078]
[1729174557707,0.38464,2600.5,2600.3,3.59246]
[1729174557909,0.8997,2601.0,2600.7,0.38459]
[1729174558110,0.8997,2601.0,2600.3,4.16945]
[1729174558111,1.28426,2601.0,2600.8,0.38458]
[1729174558415,0.38455,2601.1,2600.9,3.59237]
[1729174558712,1.6683,2601.5,2600.9,3.2078]
[1729174559013,3.69,2602.0,2601.2,3.2078]
[1729174559318,0.38446,2601.7,2601.5,3.59227]
[1729174559509,0.38446,2601.7,2601.5,3.2078]
[1729174559812,0.38446,2601.7,2601.5,3.59228]
[1729174560118,1.7146,2601.9,2601.5,3.2078]
[1729174560516,0.38449,2601.5,2601.2,3.59232]
[1729174560717,1.7146,2601.9,2601.2,3.2078]
[1729174560915,3.2078,2602.5,2601.6,3.2078]
[1729174561213,0.38441,2602.0,2601.7,0.38445]
[1729174561414,0.38441,2602.1,2601.7,0.38445]
[1729174561720,0.38442,2602.0,2601.7,0.38445]
[1729174561912,0.38442,2602.0,2601.6,3.59226]
[1729174562114,0.38442,2602.0,2601.7,0.38445]
[1729174562313,0.38441,2602.0,2601.9,3.2078]
[1729174562510,0.38446,2601.7,2601.6,3.2078]
[1729174563708,0.38446,2601.7,2601.1,1.662]
[1729174563709,0.38451,2601.4,2601.2,3.2078]
[1729174563906,13.534,2601.7,2601.3,0.38451]
[1729174563907,1.28088,2601.6,2601.3,0.38451]
[1729174564312,0.38451,2601.4,2601.2,3.2078]
[1729174564515,0.38449,2601.5,2601.3,0.38451]
[1729174564710,0.38449,2601.5,2601.2,3.2078]
[1729174564711,0.3845,2601.4,2601.2,3.59232]
[1729174564911,0.3845,2601.4,2601.2,3.59233]
[1729174565120,0.38451,2601.3,2601.2,3.2078]
[1729174565309,0.38451,2601.4,2601.2,3.2078]
[1729174565510,1.7691,2601.6,2601.2,3.2078]
[1729174565511,0.38451,2601.3,2601.2,3.2078]
[1729174566216,1.7691,2601.6,2601.2,3.2078]
[1729174566417,0.38451,2601.3,2601.2,3.2078]
[1729174566612,1.94545707,2601.6,2601.2,3.2078]
[1729174567021,0.38451,2601.4,2601.2,3.2078]
[1729174567318,0.38451,2601.3,2601.2,3.2078]
[1729174567530,1.94545707,2601.6,2601.2,3.2078]
[1729174567820,0.38451,2601.3,2601.2,3.2078]
[1729174568018,1.7691,2601.6,2601.2,3.2078]
[1729174568218,1.7691,2601.6,2601.2,3.59232]
[1729174568219,0.3845,2601.4,2601.2,3.59232]
[1729174568415,0.38449,2601.5,2601.3,0.3845]
[1729174568820,1.7691,2601.6,2601.5,0.38448]
[1729174569016,0.38441,2602.0,2601.5,0.38447]
[1729174569224,0.38446,2601.7,2601.5,3.59227]
[1729174569424,0.38443,2601.9,2601.7,0.38445]
[1729174569614,2.7075,2602.1,2601.5,3.2078]
[1729174569615,0.38441,2602.0,2601.8,3.59223]
[1729174569809,0.8405,2602.1,2601.8,3.2078]
[1729174570016,0.897,2602.2,2602.1,0.3844]
[1729174570218,0.8405,2602.6,2602.1,3.2078]
[1729174570433,0.38434,2602.5,2602.3,0.38437]
[1729174570624,0.38435,2602.5,2602.2,0.38437]
[1729174570921,0.8405,2602.6,2602.2,0.38437]
[1729174571128,0.38438,2602.3,2602.1,3.2078]
[1729174571323,0.38436,2602.4,2602.1,3.2078]
[1729174571524,0.38435,2602.5,2602.2,0.38438]
[1729174571827,0.38434,2602.5,2602.2,0.38438]
[1729174572216,0.38435,2602.4,2602.2,0.38438]
[1729174572722,0.38436,2602.4,2602.2,0.38438]
[1729174572929,0.8405,2602.6,2602.1,3.2078]
[1729174573227,0.8405,2602.6,2602.2,0.38437]
[1729174573526,0.38436,2602.4,2602.2,0.38437]
[1729174573718,0.8405,2602.6,2602.1,3.59219]
[1729174574022,0.38437,2602.3,2602.1,3.59219]
[1729174574419,0.38438,2602.2,2602.1,3.2078]
[1729174575022,1.80132,2602.6,2602.1,3.2078]
[1729174575225,0.8405,2602.6,2602.1,3.2078]
[1729174575428,0.38437,2602.3,2602.1,3.59219]
[1729174575725,0.8405,2602.6,2602.1,3.2078]
[1729174575920,0.38436,2602.4,2602.2,0.38438]
[1729174576114,0.8405,2602.6,2602.1,3.2078]
[1729174576320,0.8405,2602.6,2602.2,0.38437]
[1729174576526,0.38436,2602.4,2602.2,0.38437]
[1729174576827,0.8405,2602.6,2602.1,3.59219]
[1729174576828,0.38437,2602.3,2602.1,3.59219]
[1729174577622,0.8405,2602.6,2602.1,3.2078]
[1729174577923,11.90464284,2603.6,2602.4,3.2078]
[1729174578115,11.90464284,2603.6,2602.1,3.69]
[1729174578116,0.38418,2603.6,2603.4,0.3842]
[1729174578423,0.38418,2603.6,2602.9,0.96068]
[1729174578424,0.3842,2603.5,2603.3,3.2078]
[1729174578626,0.3842,2603.4,2603.3,3.2078]
[1729174578829,1.02877182,2603.8,2603.3,3.2078]
[1729174579015,1.02877182,2603.8,2603.3,3.59201]
[1729174579016,0.38419,2603.6,2603.3,3.59201]
[1729174579218,0.38418,2603.6,2603.4,0.3842]
[1729174579418,0.3842,2603.4,2603.3,3.2078]
[1729174579627,0.3842,2603.5,2603.3,3.2078]
[1729174579826,0.3842,2603.4,2603.3,3.2078]
[1729174580123,0.38423,2603.3,2603.0,3.59206]
[1729174580327,0.3842,2603.5,2603.2,0.38423]
[1729174580529,0.38422,2603.4,2603.1,0.38424]
[1729174580918,5.67916182,2603.8,2603.0,3.2078]
[1729174581120,0.38425,2603.1,2603.0,3.2078]
[1729174582730,0.38422,2603.3,2603.0,3.2078]
[1729174582928,4.5406,2603.8,2603.0,3.2078]
[1729174583130,4.5406,2603.8,2603.3,3.2078]
[1729174583131,0.8506,2603.8,2603.3,3.2078]
[1729174583430,1.23475,2603.8,2603.6,0.38417]
[1729174583832,0.8506,2603.8,2603.3,3.2078]
[1729174584130,0.38412,2604.0,2603.7,0.38415]
[1729174584328,3.2078,2604.1,2603.4,3.69]
[1729174584519,0.9603,2604.0,2603.3,3.59201]
[1729174584725,0.9603,2604.0,2603.3,3.2078]
[1729174584726,4.65037,2603.8,2603.3,3.2078]
[1729174584924,0.8504,2603.7,2603.3,3.2078]
[1729174585128,0.3842,2603.4,2603.3,3.2078]
[1729174585438,0.38419,2603.5,2603.3,3.59201]
[1729174585632,1.23457,2603.7,2603.4,0.3842]
[1729174585927,0.38417,2603.6,2603.4,0.3842]
[1729174586121,1.23457,2603.7,2603.4,0.3842]
[1729174586318,0.38418,2603.6,2603.4,0.3842]
[1729174586831,1.23457,2603.7,2603.4,0.3842]
[1729174587026,0.38415,2603.8,2603.5,0.38418]
[1729174587234,0.38415,2603.8,2603.4,0.3842]
[1729174587526,0.38415,2603.8,2603.3,3.2078]
[1729174587527,0.38415,2603.8,2603.6,0.38417]
[1729174588029,0.38415,2603.8,2603.5,0.38418]
[1729174588229,0.18154866,2604.2,2603.6,0.38417]
[1729174588438,5.46531,2604.3,2603.6,3.2078]
[1729174588730,0.38414,2603.9,2603.6,3.59197]
[1729174589129,0.38415,2603.8,2603.6,3.59197]
[1729174589320,5.64093089,2604.3,2603.6,3.2078]
[1729174589524,0.38416,2603.8,2603.6,3.2078]
[1729174589834,0.38416,2603.8,2603.6,3.59197]
[1729174590136,0.96024,2604.2,2603.6,3.59197]
[1729174590736,0.38415,2603.8,2603.6,3.59197]
[1729174590933,4.68072089,2604.3,2603.6,3.2078]
[1729174591128,0.38415,2603.8,2603.6,3.59197]
[1729174591322,0.38416,2603.7,2603.6,3.2078]
[1729174592028,0.38425,2603.1,2603.0,3.2078]
[1729174592525,0.38431,2602.7,2602.4,3.2078]
[1729174592944,3.69,2603.2,2602.4,3.2078]
[1729174592945,0.38427,2603.0,2602.8,0.38429]
[1729174593126,0.96058,2603.3,2602.7,3.2078]